[Event "*** Titled Tuesday Blitz"]
[Site "Chess.com"]
[Date "2021.03.09"]
[Round "3"]
[White "German_Bazeev"]
[Black "zajka-molotok"]
[Result "1-0"]
[WhiteElo "2744"]
[BlackElo "2509"]
[TimeControl "180+1"]
[EndTime "10:29:46 PST"]
[Termination "German_Bazeev won on time"]

1. d4 {[%clk 0:02:58]} 1... d5 {[%clk 0:02:59.2]} 2. Nf3 {[%clk 0:02:58.2]} 2...
Nf6 {[%clk 0:02:58.6]} 3. c4 {[%clk 0:02:58.9]} 3... c6 {[%clk 0:02:58.6]} 4.
Qc2 {[%clk 0:02:58.2]} 4... g6 {[%clk 0:02:54.9]} 5. Bf4 {[%clk 0:02:57.4]} 5...
Bf5 {[%clk 0:02:53]} 6. Qb3 {[%clk 0:02:57.1]} 6... Qc8 {[%clk 0:02:44.5]} 7. e3
{[%clk 0:02:56.7]} 7... Bg7 {[%clk 0:02:44.1]} 8. h3 {[%clk 0:02:56.4]} 8... O-O
{[%clk 0:02:43.4]} 9. Nc3 {[%clk 0:02:57.1]} 9... Be6 {[%clk 0:02:34.3]} 10. Rc1
{[%clk 0:02:36.2]} 10... Nbd7 {[%clk 0:02:30]} 11. Ng5 {[%clk 0:02:30.8]} 11...
dxc4 {[%clk 0:02:28.7]} 12. Qc2 {[%clk 0:02:20.8]} 12... Nb6 {[%clk 0:02:19.1]}
13. Nxe6 {[%clk 0:02:20]} 13... Qxe6 {[%clk 0:02:20]} 14. Be2 {[%clk 0:02:20.5]}
14... Nfd5 {[%clk 0:02:11.1]} 15. Bg3 {[%clk 0:02:14.8]} 15... Nb4 {[%clk
0:01:44.5]} 16. Qb1 {[%clk 0:02:13.5]} 16... Qd7 {[%clk 0:01:31.7]} 17. O-O
{[%clk 0:02:05.7]} 17... Rad8 {[%clk 0:01:30.5]} 18. Ne4 {[%clk 0:02:04.3]}
18... Qd5 {[%clk 0:01:06.1]} 19. Nc5 {[%clk 0:02:00.7]} 19... e5 {[%clk
0:00:59.7]} 20. Bf3 {[%clk 0:02:00.8]} 20... Qd6 {[%clk 0:00:40.6]} 21. Nxb7
{[%clk 0:02:00.6]} 21... Qe7 {[%clk 0:00:40.5]} 22. Nxd8 {[%clk 0:02:00.1]}
22... Rxd8 {[%clk 0:00:41.4]} 23. Rcd1 {[%clk 0:01:40.9]} 23... exd4 {[%clk
0:00:38.4]} 24. exd4 {[%clk 0:01:41]} 24... Bxd4 {[%clk 0:00:37.8]} 25. Qe4
{[%clk 0:01:30]} 25... Qxe4 {[%clk 0:00:20.5]} 26. Bxe4 {[%clk 0:01:30.9]} 26...
c5 {[%clk 0:00:20.9]} 27. Kh2 {[%clk 0:01:00.6]} 27... Nxa2 {[%clk 0:00:18.8]}
28. Bh4 {[%clk 0:00:51]} 28... Re8 {[%clk 0:00:17.8]} 29. Rfe1 {[%clk 0:00:47]}
29... Bxb2 {[%clk 0:00:16]} 30. Bb1 {[%clk 0:00:29.5]} 30... Rxe1 {[%clk
0:00:14.3]} 31. Rxe1 {[%clk 0:00:30.4]} 31... Nb4 {[%clk 0:00:12.5]} 32. Be7
{[%clk 0:00:25.8]} 32... Nd7 {[%clk 0:00:10.5]} 33. Rd1 {[%clk 0:00:23.3]} 33...
Bd4 {[%clk 0:00:10.2]} 34. Rxd4 {[%clk 0:00:20.7]} 34... cxd4 {[%clk 0:00:09.9]}
35. Bxb4 {[%clk 0:00:21.6]} 35... d3 {[%clk 0:00:05.8]} 36. Kg3 {[%clk
0:00:18.2]} 36... f5 {[%clk 0:00:05.4]} 37. Kf4 {[%clk 0:00:18]} 37... Kf7
{[%clk 0:00:06]} 38. Ke3 {[%clk 0:00:17.2]} 38... Ke6 {[%clk 0:00:05.5]} 39. Kd4
{[%clk 0:00:17.9]} 39... Nb6 {[%clk 0:00:05]} 40. Ba2 {[%clk 0:00:15.9]} 40...
Kf6 {[%clk 0:00:04]} 41. Ba5 {[%clk 0:00:14]} 41... Na4 {[%clk 0:00:02.2]} 42.
Bxc4 {[%clk 0:00:10.6]} 42... Nb2 {[%clk 0:00:01.3]} 43. Bxd3 {[%clk 0:00:08.9]}
43... Nd1 {[%clk 0:00:01.2]} 44. Be1 {[%clk 0:00:07.8]} 44... f4 {[%clk
0:00:01.2]} 45. Bc2 {[%clk 0:00:05.5]} 1-0

[Event "*** Titled Tuesday Blitz"]
[Site "Chess.com"]
[Date "2021.03.09"]
[Round "3"]
[White "Piotrek1979"]
[Black "mariofs"]
[Result "1-0"]
[WhiteElo "2367"]
[BlackElo "2194"]
[TimeControl "180+1"]
[EndTime "10:29:46 PST"]
[Termination "Piotrek1979 won by resignation"]

1. e4 {[%clk 0:02:37.6]} 1... c5 {[%clk 0:02:59.8]} 2. Nf3 {[%clk 0:02:36.8]}
2... Nc6 {[%clk 0:03:00.4]} 3. d4 {[%clk 0:02:36.2]} 3... cxd4 {[%clk
0:03:01.3]} 4. Nxd4 {[%clk 0:02:35.7]} 4... g6 {[%clk 0:03:02.2]} 5. c4 {[%clk
0:02:33.2]} 5... Nf6 {[%clk 0:03:01.6]} 6. Nc3 {[%clk 0:02:31.7]} 6... Nxd4
{[%clk 0:03:02.2]} 7. Qxd4 {[%clk 0:02:30.5]} 7... d6 {[%clk 0:03:02.9]} 8. Be3
{[%clk 0:02:28.7]} 8... Bg7 {[%clk 0:03:03.4]} 9. f3 {[%clk 0:02:22.1]} 9... O-O
{[%clk 0:03:03.9]} 10. Qd2 {[%clk 0:02:21.2]} 10... Be6 {[%clk 0:03:04.6]} 11.
Rc1 {[%clk 0:02:17.4]} 11... a6 {[%clk 0:03:05]} 12. Be2 {[%clk 0:02:14]} 12...
Rc8 {[%clk 0:03:01.7]} 13. b3 {[%clk 0:02:12.2]} 13... Qa5 {[%clk 0:02:58.6]}
14. Na4 {[%clk 0:02:10.4]} 14... Qc7 {[%clk 0:02:47.3]} 15. Nb6 {[%clk
0:02:04.6]} 15... Rb8 {[%clk 0:02:40.8]} 16. O-O {[%clk 0:02:03.3]} 16... Nd7
{[%clk 0:02:27.1]} 17. Nd5 {[%clk 0:02:01.6]} 17... Qd8 {[%clk 0:02:22.5]} 18.
b4 {[%clk 0:01:54.1]} 18... a5 {[%clk 0:02:18.2]} 19. bxa5 {[%clk 0:01:49.9]}
19... Nc5 {[%clk 0:02:16.6]} 20. Nb6 {[%clk 0:01:45.2]} 20... Qc7 {[%clk
0:02:08.2]} 21. Rc2 {[%clk 0:01:39.8]} 21... f5 {[%clk 0:02:05.1]} 22. exf5
{[%clk 0:01:29.9]} 22... Bxf5 {[%clk 0:02:06]} 23. Rcc1 {[%clk 0:01:28.4]} 23...
Kh8 {[%clk 0:02:03.4]} 24. Rfd1 {[%clk 0:01:27.6]} 24... Be6 {[%clk 0:01:57.2]}
25. Bd4 {[%clk 0:01:25.3]} 25... Bxd4+ {[%clk 0:01:40]} 26. Qxd4+ {[%clk
0:01:23.7]} 26... Kg8 {[%clk 0:01:40.9]} 27. Bf1 {[%clk 0:01:22.9]} 27... Nd7
{[%clk 0:01:37.7]} 28. Re1 {[%clk 0:01:21]} 28... Qc5 {[%clk 0:01:25.7]} 29.
Rcd1 {[%clk 0:01:15.3]} 29... Qxd4+ {[%clk 0:01:24.1]} 30. Rxd4 {[%clk
0:01:14.1]} 30... Nc5 {[%clk 0:01:25]} 31. Kf2 {[%clk 0:01:05.1]} 31... Rfe8
{[%clk 0:01:22.1]} 32. g3 {[%clk 0:01:04.3]} 32... Kf7 {[%clk 0:01:10.7]} 33. f4
{[%clk 0:01:03.8]} 33... Bf5 {[%clk 0:01:02.8]} 34. Re3 {[%clk 0:01:02.7]} 34...
Rbd8 {[%clk 0:01:01.9]} 35. Bg2 {[%clk 0:01:02.2]} 35... Kf6 {[%clk 0:00:59]}
36. h3 {[%clk 0:00:57.2]} 36... h5 {[%clk 0:00:58.5]} 37. Rd2 {[%clk 0:00:24.4]}
37... e5 {[%clk 0:00:57.7]} 38. fxe5+ {[%clk 0:00:23.2]} 38... dxe5 {[%clk
0:00:55.3]} 39. Nd5+ {[%clk 0:00:21.1]} 39... Kf7 {[%clk 0:00:53.3]} 40. Rde2
{[%clk 0:00:16]} 40... Rd7 {[%clk 0:00:38]} 41. Kg1 {[%clk 0:00:13.6]} 41... Bd3
{[%clk 0:00:32.8]} 42. Rf2+ {[%clk 0:00:13.2]} 42... Kg7 {[%clk 0:00:31.7]} 43.
Nf6 {[%clk 0:00:12.6]} 43... Ree7 {[%clk 0:00:24]} 44. Nxd7 {[%clk 0:00:12.9]}
44... Rxd7 {[%clk 0:00:24.1]} 45. Rxe5 {[%clk 0:00:12.8]} 45... Rc7 {[%clk
0:00:19]} 46. Bd5 {[%clk 0:00:12.7]} 46... Bf5 {[%clk 0:00:17.7]} 47. Kg2 {[%clk
0:00:12.3]} 47... Nd3 {[%clk 0:00:17.5]} 48. Rexf5 {[%clk 0:00:10.9]} 48... gxf5
{[%clk 0:00:16.9]} 49. Rxf5 {[%clk 0:00:11.8]} 49... Kg6 {[%clk 0:00:16.7]} 50.
Be4 {[%clk 0:00:11.8]} 50... Kh6 {[%clk 0:00:13.7]} 51. Bxd3 {[%clk 0:00:11.4]}
51... Re7 {[%clk 0:00:14.3]} 52. Rd5 {[%clk 0:00:11.4]} 1-0

[Event "*** Titled Tuesday Blitz"]
[Site "Chess.com"]
[Date "2021.03.09"]
[Round "3"]
[White "Reader777"]
[Black "ErikBlomqvist"]
[Result "0-1"]
[WhiteElo "2808"]
[BlackElo "2580"]
[TimeControl "180+1"]
[EndTime "10:29:47 PST"]
[Termination "ErikBlomqvist won by resignation"]

1. d4 {[%clk 0:03:00.9]} 1... Nf6 {[%clk 0:02:58.9]} 2. c4 {[%clk 0:03:01.2]}
2... e6 {[%clk 0:02:59.4]} 3. Nc3 {[%clk 0:03:00.4]} 3... Bb4 {[%clk 0:02:59.8]}
4. e3 {[%clk 0:03:00.7]} 4... O-O {[%clk 0:02:58.8]} 5. Bd3 {[%clk 0:03:00.7]}
5... d5 {[%clk 0:02:57.9]} 6. Nf3 {[%clk 0:03:00.8]} 6... dxc4 {[%clk
0:02:55.9]} 7. Bxc4 {[%clk 0:03:00.4]} 7... c5 {[%clk 0:02:56.6]} 8. O-O {[%clk
0:03:00.5]} 8... Bd7 {[%clk 0:02:56.7]} 9. a3 {[%clk 0:02:56.5]} 9... Ba5 {[%clk
0:02:52.6]} 10. Qe2 {[%clk 0:02:51.2]} 10... Bc6 {[%clk 0:02:48.9]} 11. Rd1
{[%clk 0:02:49.7]} 11... Qe7 {[%clk 0:02:46.8]} 12. Ne5 {[%clk 0:02:15]} 12...
Rd8 {[%clk 0:02:30]} 13. Nxc6 {[%clk 0:01:38.3]} 13... Nxc6 {[%clk 0:02:29.4]}
14. d5 {[%clk 0:01:28.8]} 14... Ne5 {[%clk 0:02:21.1]} 15. e4 {[%clk 0:01:03.1]}
15... Bxc3 {[%clk 0:02:07.3]} 16. bxc3 {[%clk 0:01:01.6]} 16... Nxc4 {[%clk
0:02:05.8]} 17. Qxc4 {[%clk 0:01:01.4]} 17... exd5 {[%clk 0:02:05.3]} 18. exd5
{[%clk 0:01:01.5]} 18... Nxd5 {[%clk 0:01:57.8]} 19. Bd2 {[%clk 0:00:42.9]}
19... b6 {[%clk 0:01:30.9]} 20. Re1 {[%clk 0:00:42]} 20... Qf6 {[%clk
0:01:25.3]} 21. Rad1 {[%clk 0:00:42.1]} 21... Nc7 {[%clk 0:01:10.3]} 22. Be3
{[%clk 0:00:37]} 22... h6 {[%clk 0:01:05.7]} 23. a4 {[%clk 0:00:34.4]} 23...
Rxd1 {[%clk 0:00:52.8]} 24. Rxd1 {[%clk 0:00:33.9]} 24... Rd8 {[%clk 0:00:53.4]}
25. Re1 {[%clk 0:00:19.5]} 25... Qf5 {[%clk 0:00:39]} 26. h3 {[%clk 0:00:18.4]}
26... Qd3 {[%clk 0:00:35.2]} 27. Qb3 {[%clk 0:00:16.6]} 27... Qd5 {[%clk
0:00:22.2]} 28. Qc2 {[%clk 0:00:14]} 28... Qc4 {[%clk 0:00:20.4]} 29. g3 {[%clk
0:00:13.1]} 29... Rd3 {[%clk 0:00:20.4]} 30. Bd2 {[%clk 0:00:10.9]} 30... Ne6
{[%clk 0:00:18.4]} 31. Qd1 {[%clk 0:00:08.7]} 31... Qd5 {[%clk 0:00:18.2]} 32.
Re2 {[%clk 0:00:08.3]} 32... Rxc3 {[%clk 0:00:18.3]} 33. Qe1 {[%clk 0:00:07.4]}
33... Rd3 {[%clk 0:00:18.2]} 34. Kh2 {[%clk 0:00:06.7]} 34... c4 {[%clk
0:00:17.9]} 35. Be3 {[%clk 0:00:06.4]} 35... c3 {[%clk 0:00:17.7]} 36. Qg1
{[%clk 0:00:03.9]} 36... Qc4 {[%clk 0:00:17.5]} 37. Re1 {[%clk 0:00:03.4]} 37...
c2 {[%clk 0:00:17.2]} 38. Rc1 {[%clk 0:00:04]} 38... Ra3 {[%clk 0:00:16.1]} 39.
Qg2 {[%clk 0:00:04.2]} 39... Qc8 {[%clk 0:00:14.2]} 40. Qd5 {[%clk 0:00:04]}
40... Rxa4 {[%clk 0:00:14.1]} 41. Qd2 {[%clk 0:00:04.1]} 41... Rc4 {[%clk
0:00:14.1]} 42. Qd3 {[%clk 0:00:04.4]} 42... Qc7 {[%clk 0:00:12.4]} 43. Qb3
{[%clk 0:00:04.1]} 43... a5 {[%clk 0:00:12.3]} 44. Bxb6 {[%clk 0:00:02.2]} 44...
Qc6 {[%clk 0:00:11.7]} 45. Bxa5 {[%clk 0:00:02.5]} 45... Nd4 {[%clk 0:00:11.4]}
46. Bc3 {[%clk 0:00:03.1]} 46... Nxb3 {[%clk 0:00:10.4]} 0-1

[Event "*** Titled Tuesday Blitz"]
[Site "Chess.com"]
[Date "2021.03.09"]
[Round "3"]
[White "IMVoja"]
[Black "dozer80"]
[Result "0-1"]
[WhiteElo "2414"]
[BlackElo "2587"]
[TimeControl "180+1"]
[EndTime "10:29:47 PST"]
[Termination "dozer80 won on time"]

1. e4 {[%clk 0:03:00.8]} 1... c5 {[%clk 0:02:59.6]} 2. Nf3 {[%clk 0:03:00.2]}
2... e6 {[%clk 0:02:59.6]} 3. d3 {[%clk 0:02:59.7]} 3... Nc6 {[%clk 0:02:57]} 4.
g3 {[%clk 0:02:59.5]} 4... g6 {[%clk 0:02:55.4]} 5. Bg2 {[%clk 0:02:59.4]} 5...
Bg7 {[%clk 0:02:55.7]} 6. O-O {[%clk 0:02:59.4]} 6... Nf6 {[%clk 0:02:56.3]} 7.
Nbd2 {[%clk 0:02:58.8]} 7... O-O {[%clk 0:02:56]} 8. Re1 {[%clk 0:02:58.6]} 8...
d5 {[%clk 0:02:56.2]} 9. c3 {[%clk 0:02:55.8]} 9... a5 {[%clk 0:02:55.4]} 10. a3
{[%clk 0:02:48.2]} 10... b6 {[%clk 0:02:52.6]} 11. e5 {[%clk 0:02:48.1]} 11...
Nd7 {[%clk 0:02:51.6]} 12. d4 {[%clk 0:02:48.5]} 12... Ba6 {[%clk 0:02:49.4]}
13. Bf1 {[%clk 0:02:38]} 13... cxd4 {[%clk 0:02:40.5]} 14. cxd4 {[%clk
0:02:35.8]} 14... b5 {[%clk 0:02:16.4]} 15. Bh3 {[%clk 0:01:57.2]} 15... b4
{[%clk 0:02:12.2]} 16. Nf1 {[%clk 0:01:55.7]} 16... h6 {[%clk 0:02:10.6]} 17.
Ne3 {[%clk 0:01:55.1]} 17... Ne7 {[%clk 0:01:52.9]} 18. Bf1 {[%clk 0:01:44.8]}
18... Bxf1 {[%clk 0:01:50.2]} 19. Rxf1 {[%clk 0:01:43.9]} 19... Qb6 {[%clk
0:01:40]} 20. a4 {[%clk 0:01:38.3]} 20... Rac8 {[%clk 0:01:36.6]} 21. h4 {[%clk
0:01:37]} 21... Rc6 {[%clk 0:01:14.4]} 22. h5 {[%clk 0:01:32.2]} 22... g5 {[%clk
0:01:14.3]} 23. Qd3 {[%clk 0:01:27.9]} 23... Qa6 {[%clk 0:01:10.1]} 24. Qxa6
{[%clk 0:01:21.6]} 24... Rxa6 {[%clk 0:01:08.8]} 25. Bd2 {[%clk 0:01:22.2]}
25... f6 {[%clk 0:01:03.6]} 26. Ng4 {[%clk 0:01:06.9]} 26... fxe5 {[%clk
0:01:02.3]} 27. Nfxe5 {[%clk 0:01:05.6]} 27... Nxe5 {[%clk 0:01:02.1]} 28. Nxe5
{[%clk 0:01:04.1]} 28... Bxe5 {[%clk 0:01:00.9]} 29. dxe5 {[%clk 0:01:04.3]}
29... Rc6 {[%clk 0:00:42.7]} 30. Rac1 {[%clk 0:01:02]} 30... Rfc8 {[%clk
0:00:41.7]} 31. Rxc6 {[%clk 0:01:01.3]} 31... Rxc6 {[%clk 0:00:41.4]} 32. Rc1
{[%clk 0:00:50]} 32... Kg7 {[%clk 0:00:20.1]} 33. f4 {[%clk 0:00:43.8]} 33...
Rxc1+ {[%clk 0:00:17.7]} 34. Bxc1 {[%clk 0:00:43.3]} 34... g4 {[%clk 0:00:18.4]}
35. Be3 {[%clk 0:00:38]} 35... Nc6 {[%clk 0:00:14.6]} 36. Bc5 {[%clk 0:00:23.4]}
36... b3 {[%clk 0:00:09.8]} 37. Kf2 {[%clk 0:00:22.6]} 37... Nb8 {[%clk
0:00:04.8]} 38. Ke3 {[%clk 0:00:20.6]} 38... Na6 {[%clk 0:00:04.6]} 39. Bd6
{[%clk 0:00:17.8]} 39... Kf7 {[%clk 0:00:02.5]} 40. Kd4 {[%clk 0:00:15.4]} 40...
Ke8 {[%clk 0:00:02.7]} 41. f5 {[%clk 0:00:13.8]} 41... exf5 {[%clk 0:00:02.7]}
42. Kxd5 {[%clk 0:00:14]} 42... f4 {[%clk 0:00:02.7]} 43. Ke4 {[%clk 0:00:01.8]}
43... f3 {[%clk 0:00:03]} 44. Ke3 {[%clk 0:00:01.9]} 44... Nb4 {[%clk
0:00:03.9]} 0-1

[Event "*** Titled Tuesday Blitz"]
[Site "Chess.com"]
[Date "2021.03.09"]
[Round "3"]
[White "goldihouse"]
[Black "Kotofeyca"]
[Result "1-0"]
[WhiteElo "2558"]
[BlackElo "2371"]
[TimeControl "180+1"]
[EndTime "10:29:47 PST"]
[Termination "goldihouse won on time"]

1. c4 {[%clk 0:03:00.9]} 1... c6 {[%clk 0:03:00]} 2. g3 {[%clk 0:03:01.8]} 2...
d5 {[%clk 0:03:00.7]} 3. Nf3 {[%clk 0:03:02.1]} 3... Nf6 {[%clk 0:03:01]} 4. Bg2
{[%clk 0:03:02.7]} 4... Bg4 {[%clk 0:03:01.3]} 5. cxd5 {[%clk 0:03:02.4]} 5...
cxd5 {[%clk 0:03:00.3]} 6. Ne5 {[%clk 0:02:58]} 6... Bf5 {[%clk 0:02:57.9]} 7.
Qb3 {[%clk 0:02:56.5]} 7... Qc7 {[%clk 0:02:51.6]} 8. Nc3 {[%clk 0:02:53.8]}
8... Nbd7 {[%clk 0:02:35.4]} 9. Nxd7 {[%clk 0:02:50.3]} 9... Qxd7 {[%clk
0:02:32.8]} 10. Nxd5 {[%clk 0:02:45.5]} 10... Be6 {[%clk 0:02:16.6]} 11. Nxf6+
{[%clk 0:02:38.8]} 11... exf6 {[%clk 0:02:15.1]} 12. Qxb7 {[%clk 0:02:39.3]}
12... Rc8 {[%clk 0:01:56.8]} 13. Qxd7+ {[%clk 0:02:37.9]} 13... Kxd7 {[%clk
0:01:57.7]} 14. O-O {[%clk 0:02:24]} 14... Bd6 {[%clk 0:01:55.9]} 15. Re1 {[%clk
0:02:08.2]} 15... f5 {[%clk 0:01:50.4]} 16. d3 {[%clk 0:01:55.2]} 16... Rc2
{[%clk 0:01:47.7]} 17. Be3 {[%clk 0:01:54.9]} 17... Rxb2 {[%clk 0:01:42.5]} 18.
Bxa7 {[%clk 0:01:47.3]} 18... Rxa2 {[%clk 0:01:03.2]} 19. Rxa2 {[%clk
0:01:43.9]} 19... Bxa2 {[%clk 0:01:04.1]} 20. Bd4 {[%clk 0:01:43.9]} 20... Rg8
{[%clk 0:00:20.8]} 21. Ra1 {[%clk 0:01:39.7]} 21... Be6 {[%clk 0:00:21.2]} 22.
Ra7+ {[%clk 0:01:38]} 22... Bc7 {[%clk 0:00:21.6]} 23. Be5 {[%clk 0:01:25.6]}
23... Rc8 {[%clk 0:00:20.5]} 24. Bxg7 {[%clk 0:01:11.9]} 24... Ke8 {[%clk
0:00:20.6]} 25. Bb7 {[%clk 0:01:05.9]} 25... Rb8 {[%clk 0:00:20.1]} 26. Bc6+
{[%clk 0:01:04.6]} 26... Kd8 {[%clk 0:00:21]} 27. Bf6+ {[%clk 0:01:04.1]} 27...
Kc8 {[%clk 0:00:21.9]} 28. Ra8 {[%clk 0:01:04.5]} 28... Rxa8 {[%clk 0:00:21.4]}
29. Bxa8 {[%clk 0:01:05.4]} 29... Kd7 {[%clk 0:00:21.7]} 30. Kg2 {[%clk
0:01:01]} 30... Bb6 {[%clk 0:00:22.1]} 31. e3 {[%clk 0:00:54.8]} 31... Kd6
{[%clk 0:00:22.4]} 32. d4 {[%clk 0:00:53.4]} 32... Ba5 {[%clk 0:00:22.7]} 33.
Kf3 {[%clk 0:00:51.3]} 33... Be1 {[%clk 0:00:22.4]} 34. Ke2 {[%clk 0:00:49.4]}
34... Ba5 {[%clk 0:00:20.8]} 35. Kf3 {[%clk 0:00:45.1]} 35... Be1 {[%clk
0:00:19.9]} 36. Bb7 {[%clk 0:00:45]} 36... Ba5 {[%clk 0:00:18.9]} 37. Kf4 {[%clk
0:00:42.4]} 37... Be1 {[%clk 0:00:18.3]} 38. f3 {[%clk 0:00:42.2]} 38... Bf2
{[%clk 0:00:16.8]} 39. Ba6 {[%clk 0:00:38.4]} 39... Bg1 {[%clk 0:00:16.4]} 40.
h4 {[%clk 0:00:36.3]} 40... Bf2 {[%clk 0:00:16.7]} 41. Bd3 {[%clk 0:00:35.4]}
41... Kc6 {[%clk 0:00:14]} 42. Be5 {[%clk 0:00:33.7]} 42... Kd7 {[%clk
0:00:13.7]} 43. h5 {[%clk 0:00:27.6]} 43... Ke7 {[%clk 0:00:13.5]} 44. h6 {[%clk
0:00:27.6]} 44... f6 {[%clk 0:00:13.5]} 45. Bc7 {[%clk 0:00:27.2]} 45... Kf7
{[%clk 0:00:13.9]} 46. Bxf5 {[%clk 0:00:20.5]} 46... Bxf5 {[%clk 0:00:13.3]} 47.
Kxf5 {[%clk 0:00:21.4]} 47... Bxe3 {[%clk 0:00:13.2]} 48. d5 {[%clk 0:00:20.2]}
48... Bxh6 {[%clk 0:00:13.2]} 49. d6 {[%clk 0:00:20.1]} 49... Ke8 {[%clk
0:00:08]} 50. Ke6 {[%clk 0:00:19.9]} 50... Kf8 {[%clk 0:00:02.4]} 51. d7 {[%clk
0:00:20.8]} 1-0

[Event "*** Titled Tuesday Blitz"]
[Site "Chess.com"]
[Date "2021.03.09"]
[Round "3"]
[White "Lagmantr"]
[Black "kekic76"]
[Result "1-0"]
[WhiteElo "2728"]
[BlackElo "2349"]
[TimeControl "180+1"]
[EndTime "10:29:47 PST"]
[Termination "Lagmantr won by resignation"]

1. d3 {[%clk 0:03:00.8]} 1... d5 {[%clk 0:02:58.4]} 2. Nd2 {[%clk 0:03:01.7]}
2... c5 {[%clk 0:02:57.8]} 3. b3 {[%clk 0:03:02.1]} 3... Nc6 {[%clk 0:02:57.7]}
4. Bb2 {[%clk 0:03:02.8]} 4... Nf6 {[%clk 0:02:57.4]} 5. g3 {[%clk 0:03:03.4]}
5... e6 {[%clk 0:02:56.6]} 6. Bg2 {[%clk 0:03:04.1]} 6... Be7 {[%clk 0:02:56.7]}
7. e3 {[%clk 0:03:04.8]} 7... O-O {[%clk 0:02:56.7]} 8. Ne2 {[%clk 0:03:05.5]}
8... b6 {[%clk 0:02:55.1]} 9. O-O {[%clk 0:03:06]} 9... Bb7 {[%clk 0:02:55.2]}
10. h3 {[%clk 0:03:06.1]} 10... Rc8 {[%clk 0:02:54.1]} 11. Kh2 {[%clk
0:03:06.4]} 11... h6 {[%clk 0:02:52.5]} 12. a3 {[%clk 0:03:06.4]} 12... Bd6
{[%clk 0:02:49.9]} 13. c4 {[%clk 0:03:05.8]} 13... Qc7 {[%clk 0:02:48.6]} 14. f4
{[%clk 0:03:05]} 14... Be7 {[%clk 0:02:40]} 15. Qe1 {[%clk 0:02:48.6]} 15...
Rfd8 {[%clk 0:02:38.6]} 16. Rd1 {[%clk 0:02:48.8]} 16... dxc4 {[%clk 0:02:37.6]}
17. Nxc4 {[%clk 0:02:36.8]} 17... Nd5 {[%clk 0:02:32.3]} 18. e4 {[%clk
0:02:34.9]} 18... Nf6 {[%clk 0:02:31.1]} 19. e5 {[%clk 0:02:32.7]} 19... Nd5
{[%clk 0:02:29.4]} 20. f5 {[%clk 0:02:33.1]} 20... b5 {[%clk 0:02:26.7]} 21.
fxe6 {[%clk 0:02:28.9]} 21... fxe6 {[%clk 0:02:24.2]} 22. Nd6 {[%clk 0:02:26.6]}
22... Bxd6 {[%clk 0:02:18.7]} 23. exd6 {[%clk 0:02:27.5]} 23... Qxd6 {[%clk
0:02:16.8]} 24. Nc3 {[%clk 0:02:26.8]} 24... Nxc3 {[%clk 0:02:15]} 25. Qxc3
{[%clk 0:02:26.1]} 25... Rc7 {[%clk 0:02:04.8]} 26. Rc1 {[%clk 0:02:13.4]} 26...
Nd4 {[%clk 0:02:03.2]} 27. Bxb7 {[%clk 0:02:11.9]} 27... Rxb7 {[%clk 0:02:03.2]}
28. Rf2 {[%clk 0:01:57.5]} 28... Qd5 {[%clk 0:01:50.9]} 29. Qxc5 {[%clk
0:01:27.7]} 29... Nf3+ {[%clk 0:01:38]} 30. Kh1 {[%clk 0:01:26]} 30... Qxd3
{[%clk 0:01:37.2]} 31. Qc6 {[%clk 0:01:20.1]} 31... Rf7 {[%clk 0:01:30.9]} 32.
Qxe6 {[%clk 0:00:47.1]} 32... Ng5 {[%clk 0:01:29.1]} 33. Qe5 {[%clk 0:00:46.3]}
33... Qd5+ {[%clk 0:00:43.5]} 34. Qxd5 {[%clk 0:00:46.1]} 34... Rxd5 {[%clk
0:00:44.4]} 35. Rxf7 {[%clk 0:00:46.5]} 35... Nxf7 {[%clk 0:00:44.6]} 36. Rc8+
{[%clk 0:00:43.4]} 36... Kh7 {[%clk 0:00:43.8]} 37. Bc3 {[%clk 0:00:43]} 37...
Rd3 {[%clk 0:00:40.7]} 38. Rc7 {[%clk 0:00:41.1]} 38... Kg6 {[%clk 0:00:40.3]}
39. Kg2 {[%clk 0:00:40.6]} 39... h5 {[%clk 0:00:39.4]} 40. Kf2 {[%clk
0:00:39.4]} 40... h4 {[%clk 0:00:38.9]} 41. gxh4 {[%clk 0:00:33]} 41... Rxh3
{[%clk 0:00:36]} 42. Bd2 {[%clk 0:00:20.4]} 42... Rxh4 {[%clk 0:00:31]} 43. Rxa7
{[%clk 0:00:20.2]} 43... Rh3 {[%clk 0:00:30.4]} 44. b4 {[%clk 0:00:19.4]} 44...
Ne5 {[%clk 0:00:28.9]} 45. Ke2 {[%clk 0:00:10.2]} 45... Nc4 {[%clk 0:00:27.6]}
46. Bc1 {[%clk 0:00:04.5]} 46... Rc3 {[%clk 0:00:25.2]} 47. Kd1 {[%clk
0:00:04.7]} 47... Kf6 {[%clk 0:00:23]} 48. Rb7 {[%clk 0:00:04]} 48... Nxa3
{[%clk 0:00:22.1]} 49. Bb2 {[%clk 0:00:04.2]} 1-0